bitfinex/quotes_BTCUSD_20240611
["timestamp","ask_amount","ask_price","bid_price","bid_amount"]
[1718106084905,0.49914481,66830.0,66829.0,0.00186]
[1718106085518,0.66459397,66830.0,66829.0,0.00186]
[1718106087307,0.58359397,66830.0,66829.0,0.00186]
[1718106090124,0.58341391,66830.0,66829.0,0.00186]
[1718106090330,0.58972994,66830.0,66829.0,0.00186]
[1718106091203,0.58842475,66830.0,66829.0,0.00186]
[1718106091935,0.88769075,66830.0,66829.0,0.00186]
[1718106092385,0.94335142,66830.0,66829.0,0.00186]
[1718106092549,0.93235142,66830.0,66829.0,0.00186]
[1718106092766,0.96590458,66830.0,66829.0,0.00186]
[1718106092974,0.97590458,66830.0,66829.0,0.00186]
[1718106093962,0.96490458,66830.0,66829.0,0.00086]
[1718106094471,0.97390458,66830.0,66829.0,0.00086]
[1718106094873,0.96490458,66830.0,66829.0,0.00086]
[1718106095439,0.97390458,66830.0,66829.0,0.00086]
[1718106098314,1.01839886,66830.0,66829.0,0.00086]
[1718106099196,0.97390458,66830.0,66829.0,0.00086]
[1718106100294,1.040646,66830.0,66829.0,0.00086]
[1718106101140,1.06289314,66830.0,66829.0,0.00086]
[1718106101340,1.0549508,66830.0,66829.0,0.00086]
[1718106102107,1.07719794,66830.0,66829.0,0.00086]
[1718106103111,0.96596224,66830.0,66829.0,0.00086]
[1718106104388,0.98795912,66830.0,66829.0,0.00086]
[1718106106137,0.68869312,66830.0,66829.0,0.00086]
[1718106108859,0.61103557,66830.0,66829.0,0.00086]
[1718106109053,0.68872974,66830.0,66829.0,0.00086]
[1718106109922,0.98799574,66830.0,66829.0,0.00086]
[1718106110144,1.06959574,66830.0,66829.0,0.00086]
[1718106110344,1.06972577,66830.0,66829.0,0.00086]
[1718106111284,0.98812577,66830.0,66829.0,0.00086]
[1718106113256,0.68885977,66830.0,66829.0,0.00086]
[1718106113654,0.6883445,66830.0,66829.0,0.00086]
[1718106114970,0.7735445,66830.0,66829.0,0.00086]
[1718106116938,0.6883445,66830.0,66829.0,0.00086]
[1718106117166,0.7735445,66830.0,66829.0,0.00086]
[1718106117373,0.6883445,66830.0,66829.0,0.00086]
[1718106117594,0.7735445,66830.0,66829.0,0.00086]
[1718106118294,0.67068928,66830.0,66829.0,0.00086]
[1718106118520,0.48750312,66830.0,66829.0,0.00086]
[1718106118752,0.36060265,66830.0,66829.0,0.54715496]
[1718106118974,0.02159279,66830.0,66829.0,0.54715496]
[1718106119443,0.04973767,66840.0,66829.0,0.54715496]
[1718106119675,0.08343462,66839.0,66836.0,0.07215996]
[1718106119923,0.06966032,66839.0,66838.0,0.083]
[1718106120138,0.1686817,66839.0,66837.0,0.1563]
[1718106120366,0.00502264,66838.0,66837.0,0.1563]
[1718106120593,0.17101465,66838.0,66837.0,0.1563]
[1718106120920,0.20337182,66838.0,66837.0,0.1563]
[1718106121137,0.20337182,66838.0,66834.0,0.0805]
[1718106121355,0.149626,66834.0,66831.0,0.157]
[1718106121574,0.07203875,66832.0,66831.0,0.157]
[1718106121797,0.23018356,66832.0,66831.0,0.157]
[1718106122258,0.24015942,66832.0,66831.0,0.157]
[1718106122687,0.22633454,66832.0,66831.0,0.157]
[1718106122910,0.24033746,66832.0,66831.0,0.157]
[1718106124320,0.24033746,66832.0,66831.0,0.158]
[1718106124321,0.02900142,66832.0,66831.0,0.158]
[1718106124545,0.07368432,66832.0,66831.0,0.2378]
[1718106124758,0.02397878,66832.0,66831.0,0.2378]
[1718106124974,0.00997586,66832.0,66831.0,0.386431]
[1718106125191,0.00997586,66832.0,66831.0,0.486431]
[1718106125403,0.47764269,66849.0,66835.0,0.14962]
[1718106125614,0.47764269,66849.0,66831.0,0.124]
[1718106125615,0.00502264,66848.0,66840.0,0.31105996]
[1718106126731,0.044683,66845.0,66840.0,0.31105996]
[1718106128681,0.00502264,66848.0,66840.0,0.31205996]
[1718106128904,0.04970564,66848.0,66840.0,0.60599089]
[1718106129120,0.11170088,66864.0,66840.0,0.60599089]
[1718106129121,0.00502264,66859.0,66840.0,0.94199089]
[1718106129539,0.049705,66856.0,66840.0,0.94099089]
[1718106130154,0.43295979,66868.0,66853.0,0.149579]
[1718106130358,0.00502264,66866.0,66854.0,0.2469]
[1718106130570,0.049705,66859.0,66854.0,0.2469]
[1718106131012,0.00997586,66858.0,66854.0,0.2469]
[1718106132718,0.00997586,66858.0,66854.0,0.2479]
[1718106133248,0.049705,66859.0,66854.0,0.2479]
[1718106133460,0.01010101,66858.0,66854.0,0.2479]
[1718106133667,0.049705,66859.0,66854.0,0.2479]
[1718106134030,0.15442094,66858.0,66854.0,0.0831]
[1718106134504,0.15442094,66858.0,66854.0,0.0841]
[1718106134857,0.15442094,66858.0,66854.0,0.0831]
[1718106135267,0.15442094,66858.0,66854.0,0.0841]
[1718106135871,0.15442094,66858.0,66856.0,0.001]
[1718106138878,0.15442094,66858.0,66856.0,0.002]
[1718106139321,0.15442094,66858.0,66856.0,0.001]
[1718106139731,0.15442094,66858.0,66856.0,0.002]
[1718106142076,0.01010101,66858.0,66857.0,0.2317]
[1718106142467,0.049705,66859.0,66857.0,0.2317]
[1718106143476,0.001,66858.0,66857.0,0.2317]
[1718106143941,0.049705,66859.0,66857.0,0.2317]
[1718106144094,0.050705,66859.0,66857.0,0.2317]
[1718106144638,0.01029988,66858.0,66857.0,0.2317]
[1718106145964,0.059832,66864.0,66859.0,0.0826]
[1718106146148,0.059832,66864.0,66861.0,0.1621]
[1718106146371,0.01037222,66863.0,66862.0,0.392261]
[1718106146580,0.059826,66874.0,66863.0,0.1621]
[1718106146803,0.059826,66874.0,66864.0,0.2381]
[1718106147011,0.01037222,66873.0,66864.0,0.2381]
[1718106147169,0.059826,66874.0,66864.0,0.2381]
[1718106147367,0.01056855,66873.0,66864.0,0.2381]
[1718106147580,0.059826,66874.0,66864.0,0.2381]
[1718106147989,0.01056855,66873.0,66864.0,0.2381]
[1718106148201,0.14431993,66872.0,66859.0,0.2354]
[1718106148400,0.01056855,66871.0,66859.0,0.2354]
[1718106148604,0.14431993,66870.0,66859.0,0.2354]
[1718106148813,0.01057579,66869.0,66859.0,0.2354]
[1718106149027,0.15489572,66869.0,66864.0,0.001]
[1718106149441,0.15489572,66869.0,66859.0,0.2354]
[1718106149879,0.15489572,66869.0,66859.0,0.2364]
[1718106151117,0.15489572,66869.0,66859.0,0.2354]
[1718106151559,0.15489572,66869.0,66859.0,0.2364]
[1718106152251,0.15489572,66869.0,66867.0,0.07215996]
[1718106152252,0.01057579,66869.0,66867.0,0.07215996]
[1718106152458,0.1783711,66880.0,66867.0,0.07215996]
[1718106152681,0.02416523,66873.0,66867.0,0.07215996]
[1718106153116,0.02416523,66873.0,66866.0,0.2432]
[1718106153117,0.01053303,66873.0,66866.0,0.2432]
[1718106155322,0.01053303,66873.0,66866.0,0.2442]
[1718106157246,0.01053303,66873.0,66869.0,0.07215996]
[1718106157887,0.00543811,66880.0,66869.0,0.07215996]
[1718106158696,0.00543811,66880.0,66869.0,0.07315996]
[1718106159111,0.00543811,66880.0,66869.0,0.07215996]
[1718106159708,0.00543811,66880.0,66870.0,0.2416]
[1718106162244,0.00543811,66880.0,66871.0,0.00598106]
[1718106162449,0.00543811,66880.0,66873.0,0.0798]
[1718106162664,0.06525511,66880.0,66874.0,0.16248052]
[1718106163086,0.00543811,66880.0,66874.0,0.1565]
[1718106165750,0.00543811,66880.0,66874.0,0.1575]
[1718106166156,0.00543811,66880.0,66874.0,0.1565]
[1718106166740,0.00465714,66875.0,66874.0,0.1565]
[1718106167062,0.0082821,66875.0,66874.0,0.1565]
[1718106167266,0.00543811,66880.0,66874.0,0.1565]
[1718106167439,0.0082821,66879.0,66874.0,0.1565]
[1718106167649,0.0082821,66879.0,66874.0,0.1575]
[1718106168798,0.0082821,66879.0,66874.0,0.1565]
[1718106169242,0.0082821,66879.0,66874.0,0.1575]
[1718106169604,0.0082821,66879.0,66876.0,0.07215996]
[1718106169803,0.0082821,66879.0,66878.0,0.149526]
[1718106170007,0.0082821,66879.0,66877.0,0.2345]
[1718106170008,0.00543811,66880.0,66879.0,0.149523]
[1718106172004,0.00543811,66880.0,66879.0,0.150523]
[1718106173145,0.00543811,66880.0,66879.0,0.29484293]
[1718106173326,0.00543811,66880.0,66879.0,0.80747348]
[1718106173998,0.00543811,66880.0,66879.0,0.80647348]
[1718106174160,0.00543811,66880.0,66879.0,1.10552048]
[1718106174364,0.00543811,66880.0,66879.0,1.10652048]
[1718106175524,0.00543811,66880.0,66879.0,1.10552048]
[1718106175760,0.00543811,66880.0,66879.0,1.31952048]
[1718106176182,0.00543811,66880.0,66879.0,1.61856748]
[1718106177086,0.00543811,66880.0,66879.0,1.61756748]
[1718106179299,0.00940501,66899.0,66881.0,0.299038]
[1718106179544,0.00940501,66899.0,66888.0,1.05247696]
[1718106179750,0.00940501,66899.0,66896.0,0.382285]
[1718106179962,0.00940501,66899.0,66896.0,1.00900873]
[1718106180175,0.0168709,66897.0,66896.0,1.03200873]
[1718106180376,0.00940501,66897.0,66896.0,1.33097973]
[1718106180713,0.00940501,66897.0,66896.0,1.33096171]
[1718106181813,0.00940501,66897.0,66896.0,0.67467078]
[1718106182028,0.00940501,66897.0,66896.0,0.41887078]
[1718106182425,0.00940501,66897.0,66896.0,0.26380529]
[1718106183479,0.00940501,66897.0,66896.0,0.93619622]
[1718106183675,0.00940501,66897.0,66896.0,0.95919622]
[1718106184715,0.00940501,66897.0,66896.0,1.25816722]
[1718106184936,0.000946,66907.0,66899.0,0.1503]
[1718106185147,0.1656,66927.0,66899.0,0.1503]
[1718106185148,0.2473,66932.0,66908.0,0.0788]
[1718106185495,0.2473,66932.0,66922.0,0.228227]
[1718106185913,0.2473,66932.0,66925.0,0.149418]
[1718106186119,0.009416,66929.0,66926.0,0.149417]
[1718106186540,0.2473,66932.0,66929.0,0.14941]
[1718106186758,0.2335,66937.0,66930.0,0.149409]
[1718106186964,0.05977,66936.0,66930.0,0.149409]
[1718106187169,0.2335,66937.0,66930.0,0.149409]
[1718106187615,0.059769,66938.0,66937.0,0.149394]
[1718106187847,0.1591,66957.0,66941.0,0.149385]
[1718106188096,0.1591,66957.0,66941.0,0.172385]
[1718106188302,0.059754,66955.0,66941.0,0.272385]
[1718106188714,0.1591,66957.0,66941.0,0.41670493]
[1718106188921,0.218853,66957.0,66941.0,0.41670493]
[1718106189386,0.1591,66957.0,66941.0,0.41670493]
[1718106189816,0.0823,66965.0,66955.0,0.149354]
[1718106190034,0.2,66973.0,66963.0,0.149336]
[1718106190242,0.2,66973.0,66963.0,0.172336]
[1718106190243,0.059741,66971.0,66963.0,0.172336]
[1718106190458,0.2,66973.0,66963.0,0.172336]
[1718106191321,0.00746567,66972.0,66957.0,0.149347]
[1718106191530,0.2,66973.0,66958.0,0.1]
[1718106191743,0.413,66973.0,66946.0,0.24672029]
[1718106191933,0.43295979,66980.0,66946.0,0.01432029]
[1718106191934,0.38001993,66963.0,66946.0,0.01432029]
[1718106192171,0.59301993,66963.0,66953.0,0.149357]
[1718106192376,0.00705726,66962.0,66953.0,0.149357]
[1718106192997,0.00705726,66962.0,66952.0,0.07215996]
[1718106193421,0.00705726,66962.0,66951.0,0.621162]
[1718106193645,0.00705726,66962.0,66951.0,0.4718]
[1718106193646,0.00746696,66961.0,66951.0,0.4718]
[1718106193865,0.14431993,66961.0,66951.0,0.4718]
[1718106194073,0.213,66958.0,66951.0,0.4718]
[1718106194280,0.14431993,66957.0,66951.0,0.4718]
[1718106194453,0.2354,66956.0,66951.0,0.4718]
[1718106194702,0.213,66953.0,66941.0,0.4718]
[1718106194921,0.213,66948.0,66936.0,0.07215996]
[1718106195352,0.00719511,66947.0,66936.0,0.07215996]
[1718106196204,0.0777,66951.0,66936.0,0.07215996]
[1718106196414,0.00719511,66946.0,66936.0,0.07215996]
[1718106196606,0.14431993,66950.0,66936.0,0.07215996]
[1718106196865,0.00719511,66945.0,66936.0,0.07215996]
[1718106197067,0.14431993,66950.0,66936.0,0.07215996]
[1718106197274,0.00705156,66944.0,66936.0,0.07215996]
[1718106197477,0.14431993,66950.0,66936.0,0.07215996]
[1718106197888,0.01452029,66949.0,66936.0,0.07215996]
[1718106198268,0.301372,66947.0,66931.0,0.63552729]
[1718106198481,0.213,66941.0,66931.0,0.48612029]
[1718106198685,0.213,66941.0,66931.0,0.01432029]
[1718106198886,0.00705411,66940.0,66931.0,0.01432029]
[1718106199301,0.00705411,66940.0,66928.0,0.149413]
[1718106200093,0.00705411,66940.0,66934.0,0.07215996]
[1718106200497,0.2,66944.0,66934.0,0.07215996]
[1718106200776,0.2,66951.0,66941.0,0.07215996]
[1718106201023,0.00705411,66943.0,66941.0,0.07215996]
[1718106201273,0.149356,66955.0,66941.0,0.07215996]
[1718106201448,0.00705411,66942.0,66941.0,0.07215996]
[1718106201623,0.149356,66955.0,66941.0,0.07215996]
[1718106201868,0.00697027,66942.0,66941.0,0.07215996]
[1718106202060,0.149356,66955.0,66941.0,0.07215996]
[1718106202452,0.15028701,66956.0,66941.0,0.07215996]
[1718106203317,0.15028701,66956.0,66941.0,0.22154296]
[1718106203734,0.00093501,66956.0,66941.0,0.07215996]
[1718106203943,0.1636,66955.0,66949.0,0.07215996]
[1718106204142,0.1706494,66955.0,66949.0,0.07215996]
[1718106204550,0.1706494,66955.0,66947.0,0.149371]
[1718106204757,0.29367693,66954.0,66939.0,0.4718]
[1718106204958,0.35731993,66954.0,66941.0,0.07215996]
[1718106205167,0.15645538,66953.0,66941.0,0.07215996]
[1718106205341,0.14431993,66952.0,66941.0,0.07215996]
[1718106205994,0.00709538,66951.0,66948.0,0.07215996]
[1718106206427,0.1636,66955.0,66948.0,0.07215996]
[1718106206541,0.00709538,66950.0,66948.0,0.07215996]
[1718106206742,0.1636,66955.0,66948.0,0.07215996]
[1718106206970,0.00709538,66949.0,66948.0,0.07215996]
[1718106207189,0.1636,66955.0,66948.0,0.22152696]
[1718106207389,0.1636,66955.0,66949.0,0.149367]
[1718106210134,0.1636,66955.0,66944.0,0.1643]
[1718106210135,0.1636,66955.0,66945.0,0.149375]
[1718106210543,0.00093501,66956.0,66954.0,0.07215996]
[1718106210958,0.00093501,66956.0,66955.0,0.149354]
[1718106212407,0.00093501,66956.0,66955.0,0.82838193]
[1718106212623,0.00093501,66956.0,66955.0,1.01088193]
[1718106212988,0.00940501,66964.0,66955.0,1.01088193]
[1718106212989,0.00940501,66964.0,66963.0,0.149336]
[1718106213195,0.00940501,66964.0,66963.0,0.66055593]
[1718106213400,0.00940501,66964.0,66963.0,0.95922793]
[1718106215411,0.00940501,66964.0,66963.0,1.00403436]
[1718106215626,0.00940501,66964.0,66963.0,0.95922793]
[1718106216005,0.00940501,66964.0,66963.0,1.04497278]
[1718106216206,0.00940501,66964.0,66963.0,1.30270636]
[1718106216634,0.00940501,66964.0,66963.0,1.34364478]
[1718106217733,0.00940501,66964.0,66963.0,1.29883835]
[1718106217935,0.00940501,66964.0,66963.0,1.32876835]
[1718106218391,0.00940501,66964.0,66963.0,1.17222793]
[1718106219509,0.00940501,66964.0,66963.0,1.16792793]
[1718106221973,0.00940501,66964.0,66963.0,0.95492793]
[1718106222392,0.00940501,66964.0,66963.0,0.41665593]
[1718106222807,0.00940501,66964.0,66963.0,0.71532793]
[1718106223015,0.00940501,66964.0,66963.0,1.24719993]
[1718106224423,0.00940501,66964.0,66963.0,1.54587193]
[1718106225080,1e-08,66964.0,66963.0,1.54587193]
[1718106225892,1e-08,66964.0,66963.0,1.57580193]
[1718106227093,1e-08,66964.0,66963.0,1.73320193]
[1718106227321,0.01778203,67007.0,66963.0,1.73320193]
[1718106227322,0.49267279,67001.0,67000.0,0.149253]
[1718106227782,0.0771,67004.0,67000.0,0.149253]
[1718106228319,0.0771,67004.0,66988.0,0.4718]
[1718106228536,0.0771,67004.0,66989.0,0.123]
[1718106228748,0.0771,67004.0,66989.0,0.19515996]
[1718106228949,0.0771,67004.0,66990.0,0.14431993]
[1718106229153,0.0771,67004.0,66991.0,0.123]
[1718106229350,0.0771,67004.0,66996.0,0.07215996]
[1718106229965,0.0771,67004.0,66991.0,0.123]
[1718106230173,0.0771,67004.0,66998.0,0.149257]
[1718106230372,0.0771,67004.0,66993.0,0.149268]
[1718106230574,0.1565,67002.0,66989.0,0.249277]
[1718106230942,0.1565,67002.0,66982.0,0.87508025]
[1718106230943,0.1565,66999.0,66985.0,0.149286]
[1718106231130,0.30081993,66999.0,66986.0,0.1]
[1718106231272,0.1655,66995.0,66986.0,0.1]
[1718106231474,0.1655,66995.0,66984.0,0.149288]
[1718106231686,0.1655,66995.0,66985.0,0.1]
[1718106232286,0.14431993,66994.0,66982.0,0.48612029]
[1718106232489,0.23932264,66993.0,66982.0,0.48612029]
[1718106232855,0.14431993,66992.0,66982.0,0.48612029]
[1718106233056,0.00502264,66991.0,66990.0,0.07215996]
[1718106233260,0.2343,66993.0,66989.0,0.149276]
[1718106233475,0.2343,66993.0,66984.0,0.149287]
[1718106233694,0.23932264,66993.0,66982.0,0.48612029]
[1718106233817,0.00746389,66992.0,66982.0,0.48612029]
[1718106234472,0.23932264,66993.0,66982.0,0.48612029]
[1718106234473,0.14431993,66991.0,66982.0,0.48612029]
[1718106235276,0.01248683,66990.0,66982.0,0.48612029]
[1718106235650,0.14431993,66991.0,66982.0,0.48612029]
[1718106235833,0.00746425,66990.0,66982.0,0.48612029]
[1718106236036,0.00746425,66990.0,66982.0,0.4718]
[1718106236238,0.00746426,66990.0,66982.0,0.4718]
[1718106236485,0.14431993,66991.0,66983.0,0.07215996]
[1718106237116,0.14431993,66991.0,66983.0,0.07155996]
[1718106238158,0.2343,66993.0,66990.0,0.07215996]
[1718106239520,0.2343,66993.0,66986.0,0.149284]
[1718106240588,0.2343,66993.0,66975.0,0.4718]
[1718106240791,0.1641,66990.0,66976.0,0.1]
[1718106241000,0.149281,66988.0,66976.0,0.1]
[1718106241172,0.14431993,66987.0,66976.0,0.1]
[1718106241601,0.14431993,66987.0,66977.0,0.07215996]
[1718106241817,0.10715695,66986.0,66977.0,0.07215996]
[1718106242021,0.10715695,66986.0,66984.0,0.07215996]
[1718106242234,0.10715695,66985.0,66984.0,0.07215996]
[1718106242444,0.1641,66990.0,66984.0,0.07215996]
[1718106242858,0.10746108,66989.0,66984.0,0.07215996]
[1718106243070,0.10746108,66989.0,66981.0,0.149294]
[1718106243275,0.10746108,66989.0,66977.0,0.22146296]
[1718106243478,0.10746108,66989.0,66978.0,0.1]
[1718106244495,0.11451782,66988.0,66978.0,0.1]
[1718106244696,0.10705346,66987.0,66978.0,0.1]
[1718106244926,0.10705346,66986.0,66978.0,0.1]
[1718106245127,0.10705346,66985.0,66978.0,0.1]
[1718106245328,0.10705346,66984.0,66977.0,0.07215996]
[1718106245767,0.29359893,66989.0,66977.0,0.07215996]
[1718106245988,0.11372858,66988.0,66977.0,0.07215996]
[1718106246156,0.25804851,66987.0,66974.0,0.00017973]
[1718106246361,0.1615,66984.0,66974.0,0.00017973]
[1718106246942,0.10629157,66983.0,66974.0,0.00017973]
[1718106247363,0.10629157,66983.0,66976.0,0.149306]
[1718106247566,0.14431993,66982.0,66974.0,0.00017973]
[1718106247774,0.2371,66980.0,66974.0,0.00017973]
[1718106248016,0.586409,66975.0,66974.0,0.00017973]
[1718106248226,0.8370205,66975.0,66974.0,0.00017973]
[1718106248432,0.84962788,66975.0,66974.0,0.00017973]
[1718106249505,0.74333631,66975.0,66974.0,0.00017973]
[1718106249740,0.84294796,66975.0,66974.0,0.00017973]
[1718106251007,0.34931903,66975.0,66974.0,0.00017973]
[1718106251237,0.09961165,66975.0,66974.0,0.00017973]
[1718106251444,0.1512,66980.0,66974.0,0.00017973]
[1718106251652,0.0757,66981.0,66979.0,0.1493]
[1718106252082,0.1622,66984.0,66979.0,0.1493]
[1718106252340,0.1622,66984.0,66974.0,0.00017973]
[1718106252341,0.1622,66984.0,66974.0,0.14948873]
[1718106252783,0.10658425,66983.0,66974.0,0.14948873]
[1718106252989,0.00746491,66983.0,66974.0,0.14948873]
[1718106253389,0.00746491,66983.0,66974.0,0.00017973]
[1718106253829,0.24300142,66982.0,66974.0,0.00017973]
[1718106254037,0.01260017,66981.0,66974.0,0.00017973]
[1718106254246,0.14431993,66980.0,66974.0,0.00017973]
[1718106254660,0.00746539,66979.0,66974.0,0.00017973]
[1718106255140,0.14431993,66980.0,66974.0,0.00017973]
[1718106255349,0.2067482,66984.0,66974.0,0.00017973]
[1718106255525,0.14431993,66983.0,66974.0,0.00017973]
[1718106256382,0.14431993,66983.0,66979.0,0.001]
[1718106258491,0.12024682,66986.0,66979.0,0.001]
[1718106258750,0.0756,66986.0,66979.0,0.001]
[1718106259210,0.12024682,66986.0,66979.0,0.001]
[1718106259439,0.01263674,66985.0,66979.0,0.001]
[1718106259900,0.05728356,66985.0,66979.0,0.001]
[1718106260124,0.05211147,66985.0,66979.0,0.001]
[1718106260335,0.09964956,66984.0,66979.0,0.001]
[1718106260515,0.01263719,66983.0,66979.0,0.001]
[1718106260714,0.04464682,66985.0,66979.0,0.001]
[1718106260956,0.09974048,66984.0,66979.0,0.001]
[1718106261163,0.12024682,66986.0,66979.0,0.001]
[1718106261391,0.09942932,66985.0,66979.0,0.001]
[1718106261610,0.09942932,66984.0,66979.0,0.001]
[1718106261816,0.01262202,66983.0,66979.0,0.001]
[1718106262036,0.01262202,66984.0,66979.0,0.001]
[1718106262244,0.09942981,66983.0,66979.0,0.001]
[1718106262467,0.00746464,66984.0,66979.0,0.001]
[1718106262694,0.149296,66981.0,66979.0,0.001]
[1718106262907,0.14431993,66981.0,66979.0,0.001]
[1718106266397,0.15178522,66980.0,66979.0,0.001]
[1718106267053,0.16444814,66980.0,66979.0,0.001]
[1718106267266,0.24291858,66980.0,66979.0,0.001]
[1718106267450,0.16444814,66980.0,66979.0,0.001]
[1718106268141,0.32524814,66980.0,66979.0,0.001]
[1718106268567,0.31778285,66980.0,66979.0,0.001]
[1718106268822,0.01269987,66980.0,66979.0,0.001]
[1718106269063,0.01269987,66981.0,66979.0,0.001]
[1718106269297,0.2,66983.0,66979.0,0.001]
[1718106276629,0.1554,66982.0,66979.0,0.001]
[1718106276863,0.15178471,66981.0,66979.0,0.001]
[1718106277496,0.07960757,66980.0,66979.0,0.001]
[1718106277744,0.23139296,66980.0,66979.0,0.001]
[1718106277973,0.62779096,66980.0,66979.0,0.001]
[1718106278185,0.92971077,66980.0,66979.0,0.001]
[1718106278393,0.87397801,66980.0,66979.0,0.001]
[1718106278601,1.00793404,66980.0,66979.0,0.001]
[1718106279263,0.87397801,66980.0,66979.0,0.001]
[1718106280567,0.88697801,66980.0,66979.0,0.002]
[1718106280979,0.88497801,66980.0,66979.0,0.002]
[1718106281418,0.89697801,66980.0,66979.0,0.002]
[1718106282385,1.82211872,66980.0,66979.0,0.002]
[1718106282618,1.92211872,66980.0,66979.0,0.002]
[1718106283168,2.07297454,66980.0,66979.0,0.002]
[1718106283365,2.07297454,66980.0,66979.0,0.001]
[1718106283366,1.91111872,66980.0,66979.0,0.001]
[1718106283669,1.89911872,66980.0,66979.0,0.001]
[1718106284016,1.91011872,66980.0,66979.0,0.002]
[1718106284219,2.37811472,66980.0,66979.0,0.002]
[1718106284418,2.37811472,66980.0,66979.0,0.001]
[1718106284869,2.55693292,66980.0,66979.0,0.002]
[1718106284983,2.55693292,66980.0,66976.0,0.00085]
[1718106284984,0.746522,66977.0,66976.0,0.00085]
[1718106285210,1.64142194,66977.0,66976.0,0.00085]
[1718106285385,1.7922396,66977.0,66976.0,0.00085]
[1718106285586,1.8152396,66977.0,66976.0,0.00085]
[1718106285815,1.80907052,66977.0,66976.0,0.00085]
[1718106286211,0.647927,66975.0,66974.0,0.00017973]
[1718106286421,1.62977314,66975.0,66974.0,0.00017973]
[1718106286842,1.63007973,66975.0,66974.0,0.00017973]
[1718106288086,1.43185434,66975.0,66974.0,0.00017973]
[1718106288353,1.50038887,66975.0,66974.0,0.00017973]
[1718106288504,1.17877087,66975.0,66974.0,0.00017973]
[1718106288708,1.19277087,66975.0,66974.0,0.00017973]
[1718106288886,1.09970678,66975.0,66974.0,0.00017973]
[1718106289096,1.17877087,66975.0,66974.0,0.00017973]
[1718106289327,1.14462466,66975.0,66974.0,0.00017973]
[1718106290358,1.14455584,66975.0,66974.0,0.00017973]
[1718106290561,1.13055584,66975.0,66974.0,0.00017973]
[1718106290790,1.14455584,66975.0,66974.0,0.00017973]
[1718106290994,1.15855584,66975.0,66974.0,0.00017973]
[1718106291189,1.14455584,66975.0,66974.0,0.00017973]
[1718106291391,1.13055584,66975.0,66974.0,0.00017973]
[1718106291814,1.15855584,66975.0,66974.0,0.00017973]
[1718106292439,1.15859213,66975.0,66974.0,0.00017973]
[1718106293717,1.17665251,66975.0,66974.0,0.00017973]
[1718106293930,0.83355251,66975.0,66974.0,0.00017973]
[1718106294139,0.47124351,66975.0,66974.0,0.00017973]
[1718106294341,0.27124351,66975.0,66974.0,0.00017973]
[1718106294550,0.19038031,66975.0,66974.0,0.00102973]
[1718106294759,0.17638031,66975.0,66974.0,0.00102973]
[1718106294973,0.36238031,66975.0,66974.0,0.00102973]
[1718106295187,0.37038031,66975.0,66974.0,0.00102973]
[1718106295422,0.73146279,67001.0,67000.0,5.89302426]
[1718106295631,2.44424291,67001.0,67000.0,5.89302426]
[1718106295856,2.01128312,67001.0,67000.0,5.89302426]
[1718106296069,2.03767866,67001.0,67000.0,4.74742426]
[1718106296274,2.09741466,67001.0,67000.0,4.74742426]
[1718106296481,1.92123558,67001.0,67000.0,4.74742426]
[1718106296736,1.91284893,67001.0,67000.0,4.74742426]
[1718106297184,1.93092838,67001.0,67000.0,4.74742426]
[1718106298077,1.94492838,67001.0,67000.0,4.74742426]
[1718106298538,2.20272838,67001.0,67000.0,4.74742426]
[1718106298764,2.21672838,67001.0,67000.0,4.74842426]
[1718106299172,1.91822538,67001.0,67000.0,4.74842426]
[1718106299639,1.81822538,67001.0,67000.0,4.74842426]
[1718106299861,1.31822538,67001.0,67000.0,4.74842426]
[1718106300273,1.07442538,67001.0,67000.0,4.74842426]
[1718106300502,1.04087048,67001.0,67000.0,4.74842426]
[1718106300702,1.01447494,67001.0,67000.0,4.74842426]
[1718106300911,0.97247494,67001.0,67000.0,4.74742426]
[1718106301126,1.08647494,67001.0,67000.0,4.74742426]
[1718106301328,1.09747494,67001.0,67000.0,4.74842426]
[1718106301543,1.08347494,67001.0,67000.0,4.74842426]
[1718106301754,1.07247494,67001.0,67000.0,4.74742426]
[1718106301965,1.29047494,67001.0,67000.0,4.74742426]
[1718106302194,1.58797794,67001.0,67000.0,4.74742426]
[1718106302417,1.8595212,67001.0,67000.0,4.74742426]
[1718106303124,1.8625212,67001.0,67000.0,4.74742426]
[1718106304499,1.8555212,67001.0,67000.0,4.74742426]
[1718106304725,1.8605212,67001.0,67000.0,4.74842426]
[1718106304906,2.00484113,67001.0,67000.0,4.74842426]
[1718106305229,2.01384113,67001.0,67000.0,4.74742426]
[1718106305912,2.50674413,67001.0,67000.0,4.72835765]
[1718106306147,2.80524713,67001.0,67000.0,3.47175765]
[1718106306379,2.93352713,67001.0,67000.0,3.22185765]
[1718106306614,2.93352713,67001.0,67000.0,3.11245765]
[1718106306615,2.96072643,67001.0,67000.0,3.11245765]
[1718106306831,2.96072643,67001.0,67000.0,3.10145765]
[1718106307254,2.96072643,67001.0,67000.0,3.08545765]
[1718106307461,2.82431243,67001.0,67000.0,3.0809191]
[1718106307668,1.9114242,67001.0,67000.0,3.07898958]
[1718106307892,1.8974242,67001.0,67000.0,3.07898958]
[1718106308115,1.8834242,67001.0,67000.0,3.07798958]
[1718106308316,1.8974242,67001.0,67000.0,3.07798958]
[1718106308894,1.99334579,67001.0,67000.0,3.07798958]
[1718106309142,1.97886615,67001.0,67000.0,3.07798958]
[1718106309593,2.41626815,67001.0,67000.0,3.07798958]
[1718106310030,2.41626815,67001.0,67000.0,3.00273958]
[1718106310237,2.41626815,67001.0,67000.0,2.98373958]
[1718106310890,2.29136915,67001.0,67000.0,2.94125958]
[1718106311105,2.27736915,67001.0,67000.0,2.93425958]
[1718106312115,2.26307405,67001.0,67000.0,2.93425958]
[1718106312316,2.27707405,67001.0,67000.0,2.93425958]
[1718106312528,2.29107405,67001.0,67000.0,2.93425958]
[1718106312673,2.27707405,67001.0,67000.0,2.92228958]
[1718106312883,2.26307405,67001.0,67000.0,2.92228958]
[1718106313079,2.27707405,67001.0,67000.0,2.92228958]
[1718106313301,2.27707405,67001.0,67000.0,2.91023109]
[1718106313302,2.29107405,67001.0,67000.0,2.91023109]
[1718106313500,2.27707405,67001.0,67000.0,2.91023109]
[1718106313712,2.27707405,67001.0,67000.0,2.89925109]
[1718106314691,2.27707405,67001.0,67000.0,2.89805109]
[1718106315103,2.29107405,67001.0,67000.0,2.89805109]
[1718106315483,2.29107405,67001.0,67000.0,2.88839109]